bitfinex-derivatives/quotes_SOLF0:USTF0_20230830
["timestamp","ask_amount","ask_price","bid_price","bid_amount"]
[1693418024488,0.65617342,20.78,20.775,104.01531137]
[1693418032090,0.65617342,20.78,20.775,0.70531137]
[1693418041995,103.31,20.778,20.775,0.70531137]
[1693418042194,103.31,20.776,20.768,103.31]
[1693418042502,103.31,20.772,20.765,123.9761]
[1693418042708,103.31,20.772,20.765,162.509305]
[1693418045907,103.31,20.772,20.765,103.31]
[1693418047911,20.8415,20.779,20.761,39.27237728]
[1693418048098,103.31,20.767,20.76,103.31]
[1693418048418,103.31,20.764,20.757,103.31]
[1693418049402,103.31,20.761,20.753,103.31]
[1693418051930,103.31,20.763,20.757,103.31]
[1693418054113,103.31,20.766,20.759,103.31]
[1693418055712,103.31,20.766,20.749,38.05873855]
[1693418055713,103.31,20.763,20.756,103.31]
[1693418056151,103.31,20.759,20.752,103.31]
[1693418059221,103.31,20.757,20.75,103.31]
[1693418067224,103.31,20.753,20.748,57.35843301]
[1693418067518,103.31,20.753,20.748,37.70823301]
[1693418067718,103.31,20.753,20.747,14.44]
[1693418069221,103.31,20.753,20.746,103.31]
[1693418069622,103.31,20.753,20.747,14.46]
[1693418071012,0.77360574,20.752,20.747,14.46]
[1693418074335,0.77360574,20.752,20.746,142.65874758]
[1693418075922,0.77360574,20.752,20.747,14.46]
[1693418076123,103.31,20.751,20.747,14.46]
[1693418076458,103.31,20.749,20.743,14.46]
[1693418078228,0.73267665,20.748,20.743,14.46]
[1693418078425,0.73267665,20.748,20.745,14.46]
[1693418090237,0.73267665,20.748,20.744,0.7250917]
[1693418091932,103.31,20.747,20.744,0.7850917]
[1693418093040,103.31,20.745,20.744,0.7850917]
[1693418094538,103.31,20.747,20.745,14.46]
[1693418095432,103.31,20.75,20.745,14.46]
[1693418097037,104.04662702,20.75,20.745,14.46]
[1693418101340,103.31,20.748,20.744,0.06]
[1693418101641,103.31,20.748,20.745,14.46]
[1693418102076,103.31,20.749,20.745,14.46]
[1693418102635,103.31,20.749,20.742,103.31]
[1693418102636,103.31,20.749,20.742,117.77]
[1693418103741,103.31,20.749,20.748,0.06]
[1693418104448,0.73662702,20.75,20.748,0.06]
[1693418112064,104.04662702,20.75,20.748,0.06]
[1693418115152,103.31,20.749,20.748,0.06]
[1693418117854,103.31,20.749,20.746,0.77712446]
[1693418118053,0.73662702,20.75,20.746,0.77712446]
[1693418118054,103.31,20.747,20.746,0.77712446]
[1693418121970,103.31,20.747,20.74,14.46]
[1693418122151,103.31,20.742,20.735,103.31]
[1693418122352,103.31,20.742,20.736,14.46]
[1693418130260,103.31,20.742,20.727,14.46]
[1693418130475,20.5433,20.749,20.727,14.46]
[1693418130476,22.75968757,20.741,20.727,14.46]
[1693418130662,103.31,20.736,20.73,14.46]
[1693418131658,103.31,20.733,20.727,35.3724]
[1693418132065,103.31,20.735,20.728,103.31]
[1693418135268,103.31,20.732,20.726,37.78313252]
[1693418135467,103.31,20.732,20.725,14.46]
[1693418136965,103.31,20.738,20.731,103.31]
[1693418137191,22.76295347,20.737,20.731,103.31]
[1693418139312,22.76295347,20.737,20.735,14.46]
[1693418139567,103.31,20.741,20.735,14.46]
[1693418139774,22.76396815,20.74,20.735,14.46]
[1693418141985,22.76396815,20.74,20.735,103.31]
[1693418142173,22.76396815,20.739,20.735,103.31]
[1693418142479,115.56,20.744,20.733,14.46]
[1693418142676,22.76417626,20.743,20.733,14.46]
[1693418143373,22.76404515,20.742,20.733,14.46]
[1693418143570,22.76404515,20.743,20.733,14.46]
[1693418143776,22.76404515,20.742,20.733,14.46]
[1693418143977,22.76404515,20.741,20.733,14.46]
[1693418144179,22.76404515,20.74,20.733,14.46]
[1693418144477,115.56,20.744,20.733,14.46]
[1693418144779,22.76350819,20.743,20.733,14.46]
[1693418148679,22.76350819,20.743,20.735,0.06]
[1693418154884,0.76647369,20.741,20.737,0.69234384]
[1693418158287,22.76814368,20.74,20.737,0.69234384]
[1693418158489,138.32814368,20.74,20.737,0.69234384]
[1693418158788,22.76814368,20.739,20.737,0.69234384]
[1693418162283,104.05,20.738,20.737,0.69234384]
[1693418163741,104.05,20.738,20.735,0.06]
[1693418164689,22.76783501,20.737,20.735,0.06]
[1693418165088,104.05,20.738,20.735,0.06]
[1693418181598,22.76677422,20.737,20.735,0.06]
[1693418182292,126.81677422,20.737,20.735,0.06]
[1693418182498,104.05,20.737,20.735,0.06]
[1693418186006,22.76738992,20.736,20.735,0.06]
[1693418188015,104.05,20.737,20.735,0.06]
[1693418188217,22.76601269,20.736,20.735,0.06]
[1693418201826,126.81601269,20.736,20.726,21.7976]
[1693418202027,104.05,20.73,20.726,21.7976]
[1693418202327,104.05,20.73,20.725,39.30568948]
[1693418202523,104.05,20.73,20.724,14.47]
[1693418202719,104.05,20.727,20.721,14.47]
[1693418205229,104.05,20.729,20.724,14.47]
[1693418210729,104.05,20.733,20.727,14.47]
[1693418210934,22.77704426,20.732,20.727,14.47]
[1693418211937,22.77704426,20.732,20.727,104.05]
[1693418212138,22.77658019,20.731,20.727,104.05]
[1693418212335,104.05,20.734,20.727,104.05]
[1693418212582,22.77682981,20.733,20.727,104.05]
[1693418213037,104.05,20.731,20.724,143.17054001]
[1693418213245,104.05,20.731,20.724,104.05]
[1693418214434,104.05,20.733,20.727,14.47]
[1693418214679,22.77796191,20.732,20.727,14.47]
[1693418215135,22.77796191,20.732,20.726,104.05]
[1693418215442,104.05,20.73,20.724,14.47]
[1693418215837,22.78641366,20.729,20.724,14.47]
[1693418220240,104.05,20.73,20.724,14.47]
[1693418220434,22.83943617,20.729,20.724,14.47]
[1693418220937,104.05,20.73,20.724,14.47]
[1693418221141,22.83879503,20.729,20.724,14.47]
[1693418222027,126.88879503,20.729,20.722,104.05]
[1693418222232,104.05,20.729,20.722,104.05]
[1693418227941,22.83936402,20.728,20.722,104.05]
[1693418229754,104.05,20.729,20.722,104.05]
[1693418230648,22.84251832,20.728,20.722,104.05]
[1693418231960,104.05,20.729,20.722,104.05]
[1693418232940,104.05,20.729,20.722,143.32062228]
[1693418235552,104.05,20.732,20.725,104.05]
[1693418238551,104.05,20.732,20.729,0.06]
[1693418242669,104.05,20.732,20.73,14.47]
[1693418243359,104.05,20.732,20.729,0.06]
[1693418249860,22.80743587,20.731,20.729,0.06]
[1693418250263,104.05,20.73,20.722,104.05]
[1693418251962,104.05,20.728,20.721,104.05]
[1693418253564,0.74352578,20.727,20.721,104.05]
[1693418255468,104.05,20.725,20.719,104.05]
[1693418255666,104.05,20.722,20.715,104.05]
[1693418256770,20.7611,20.732,20.708,20.4792]
[1693418256771,104.05,20.723,20.716,104.05]
[1693418257176,20.7611,20.732,20.704,500.0]
[1693418257177,104.05,20.72,20.713,104.05]
[1693418257374,22.93881421,20.719,20.713,104.05]
[1693418258568,104.05,20.72,20.713,104.05]
[1693418261971,104.05,20.722,20.715,104.05]
[1693418270680,104.05,20.725,20.719,14.47]
[1693418270916,20.7611,20.732,20.721,104.05]
[1693418270917,104.05,20.728,20.721,104.05]
[1693418271109,22.85931496,20.727,20.721,104.05]
[1693418271478,22.85931496,20.727,20.722,104.05]
[1693418271682,104.05,20.729,20.722,104.05]
[1693418271877,22.85768821,20.728,20.722,104.05]
[1693418272086,22.85768821,20.728,20.723,104.05]
[1693418272275,22.85768821,20.727,20.723,104.05]
[1693418272478,104.05,20.733,20.726,104.05]
[1693418272783,22.85050357,20.732,20.726,104.05]
[1693418273381,22.85050357,20.732,20.727,14.47]
[1693418276179,22.85050357,20.732,20.729,104.05]
[1693418276379,104.05,20.736,20.729,104.05]
[1693418276581,22.81281095,20.735,20.729,104.05]
[1693418281981,104.05,20.736,20.729,104.05]
[1693418282186,22.8123574,20.735,20.729,104.05]
[1693418283587,126.8623574,20.735,20.728,104.05]
[1693418283786,22.8123574,20.734,20.729,0.06]
[1693418284400,104.05,20.732,20.729,0.06]
[1693418284691,22.8123574,20.731,20.729,0.06]
[1693418287094,22.8123574,20.73,20.729,0.06]
[1693418287489,22.8123574,20.732,20.729,0.06]
[1693418287692,22.8123574,20.731,20.729,0.06]
[1693418288000,22.8123574,20.73,20.729,0.06]
[1693418288294,104.05,20.733,20.729,0.06]
[1693418288295,22.8123574,20.732,20.729,0.06]
[1693418288589,22.8123574,20.731,20.729,0.06]
[1693418288794,22.8123574,20.73,20.729,0.06]
[1693418289596,22.8123574,20.732,20.729,0.06]
[1693418289798,22.8123574,20.731,20.729,0.06]
[1693418289989,22.8123574,20.73,20.729,0.06]
[1693418290698,22.8123574,20.732,20.729,0.06]
[1693418290899,22.8123574,20.731,20.729,0.06]
[1693418291099,22.8123574,20.73,20.729,0.06]
[1693418291496,22.8123574,20.732,20.729,0.06]
[1693418291694,22.8123574,20.731,20.729,0.06]
[1693418291994,22.8123574,20.73,20.729,0.06]
[1693418292394,22.8123574,20.732,20.729,0.06]
[1693418292593,22.8123574,20.731,20.729,0.06]
[1693418292795,22.8123574,20.73,20.729,0.06]
[1693418293195,22.8123574,20.732,20.729,0.06]
[1693418294086,22.8123574,20.732,20.705,159.07]
[1693418294087,0.06,20.728,20.695,500.0]
[1693418294286,104.05,20.711,20.701,104.05]
[1693418294492,22.8123574,20.71,20.701,104.05]
[1693418296290,22.8123574,20.71,20.699,20.8489]
[1693418296291,104.05,20.708,20.699,124.8989]
[1693418296499,22.8123574,20.707,20.699,124.8989]
[1693418297396,22.8123574,20.707,20.699,20.8489]
[1693418297599,22.8123574,20.706,20.699,20.8489]
[1693418297794,115.97,20.711,20.699,20.8489]
[1693418297992,22.99023087,20.71,20.699,20.8489]
[1693418298793,22.99023087,20.71,20.7,115.97]
[1693418298988,22.99023087,20.709,20.7,115.97]
[1693418299189,22.99023087,20.708,20.701,14.47]
[1693418299394,615.97,20.713,20.701,14.47]
[1693418299395,22.99023087,20.707,20.701,14.47]
[1693418299596,22.99023087,20.706,20.701,14.47]
[1693418299795,615.97,20.713,20.701,14.47]
[1693418299996,22.98824135,20.712,20.701,14.47]
[1693418300200,115.97,20.709,20.699,20.8489]
[1693418300390,22.98824135,20.708,20.699,20.8489]
[1693418305406,115.97,20.715,20.703,14.47]
[1693418313709,115.97,20.715,20.708,0.06]
[1693418322309,104.32,20.712,20.708,0.06]
[1693418324616,104.32,20.714,20.708,0.06]
[1693418327515,104.32,20.714,20.707,14.49]
[1693418328817,104.32,20.714,20.708,0.06]
[1693418329019,104.32,20.711,20.708,0.06]
[1693418330222,104.32,20.71,20.708,0.06]
[1693418342035,105.00530849,20.711,20.708,0.06]
[1693418345439,105.00530849,20.711,20.708,38.00980694]
[1693418346138,104.32,20.709,20.708,0.06]
[1693418346439,104.32,20.709,20.707,0.49103884]
[1693418346741,104.32,20.709,20.699,20.8489]
[1693418346742,104.32,20.708,20.699,20.8489]
[1693418346940,104.32,20.705,20.699,20.8489]
[1693418347754,104.32,20.705,20.699,59.76395791]
[1693418348343,0.76084196,20.704,20.699,59.76395791]
[1693418352047,0.76084196,20.704,20.701,14.49]
[1693418352750,0.76084196,20.704,20.703,14.49]
[1693418355154,0.76084196,20.704,20.702,104.32]
[1693418355358,105.08084196,20.704,20.699,59.76395791]
[1693418362058,0.76084196,20.704,20.699,59.76395791]
[1693418363355,0.76084196,20.704,20.699,38.91505791]
[1693418363556,0.76084196,20.704,20.698,14.49]
[1693418363756,0.76084196,20.704,20.699,21.5583]
[1693418365069,0.76084196,20.704,20.701,104.32]
[1693418369572,37.72477063,20.721,20.699,21.5583]
[1693418369811,104.32,20.715,20.707,104.32]
[1693418370167,104.32,20.715,20.708,20.2522]
[1693418371972,104.32,20.713,20.708,20.2522]
[1693418373776,104.32,20.713,20.709,0.06]
[1693418374475,104.32,20.713,20.71,14.49]
[1693418377286,104.32,20.715,20.71,14.49]
[1693418379673,104.32,20.715,20.709,0.06]
[1693418380970,104.32,20.712,20.709,0.06]
[1693418382074,104.32,20.71,20.709,0.06]
[1693418387585,104.32,20.71,20.705,38.16216216]
[1693418387791,104.32,20.71,20.703,14.49]
[1693418388595,104.32,20.71,20.709,0.06]
[1693418400101,104.32,20.71,20.698,118.81]
[1693418400299,104.32,20.706,20.698,118.81]
[1693418400498,104.32,20.703,20.695,14.49]
[1693418404701,104.32,20.709,20.701,14.49]
[1693418405097,104.32,20.712,20.704,104.32]
[1693418405499,104.32,20.712,20.705,21.4209]
[1693418407905,104.32,20.709,20.701,104.32]
[1693418408300,104.32,20.706,20.698,104.32]
[1693418410204,104.32,20.706,20.698,118.81]
[1693418415111,104.32,20.706,20.698,104.32]
[1693418417411,104.32,20.704,20.696,39.21583775]
[1693418417611,104.32,20.704,20.695,104.32]
[1693418418322,104.32,20.7,20.692,104.32]
[1693418422114,104.32,20.699,20.691,104.32]
[1693418425116,104.32,20.702,20.693,104.32]
[1693418425316,539.21197488,20.713,20.698,104.32]
[1693418425317,104.32,20.708,20.698,104.32]
[1693418431123,104.32,20.705,20.696,104.32]
[1693418432024,104.32,20.704,20.695,104.32]
[1693418432435,116.01,20.706,20.693,116.01]
[1693418441731,116.01,20.704,20.692,21.4539]
[1693418446534,500.0,20.713,20.693,116.01]
[1693418446535,116.01,20.706,20.693,116.01]
[1693418448836,116.01,20.706,20.699,0.06]
[1693418451938,116.01,20.708,20.699,0.06]
[1693418452338,104.39,20.706,20.699,0.06]
[1693418461941,104.39,20.707,20.699,104.45]
[1693418462142,104.39,20.71,20.703,14.49]
[1693418462339,104.39,20.713,20.705,104.39]
[1693418462541,104.39,20.716,20.708,104.39]
[1693418476657,104.39,20.716,20.71,0.75313091]
[1693418476854,0.71753166,20.714,20.71,0.75313091]
[1693418480357,104.39,20.713,20.71,0.75313091]
[1693418480759,104.39,20.713,20.705,104.39]
[1693418482267,0.71753166,20.714,20.707,104.39]
[1693418487764,0.71753166,20.714,20.708,104.39]
[1693418491957,0.71753166,20.714,20.711,104.39]
[1693418510378,0.71753166,20.714,20.71,0.06]
[1693418510379,0.71753166,20.714,20.713,104.39]
[1693418513477,104.39,20.72,20.713,104.39]
[1693418516077,104.39,20.731,20.719,104.39]
[1693418516286,104.39,20.731,20.722,104.39]
[1693418521981,104.39,20.729,20.721,104.39]
[1693418527695,104.39,20.73,20.723,104.39]
[1693418528581,104.39,20.728,20.72,104.39]
[1693418529777,500.0,20.723,20.714,0.06]
[1693418530077,104.39,20.717,20.705,21.5831]
[1693418530288,104.39,20.717,20.709,104.39]
[1693418531992,104.39,20.718,20.711,104.39]
[1693418538722,104.39,20.718,20.714,0.06]
[1693418539704,104.39,20.718,20.705,21.5831]
[1693418539705,104.39,20.715,20.708,104.39]
[1693418542315,0.77519023,20.714,20.708,104.39]
[1693418558018,104.39,20.713,20.705,125.9731]
[1693418562178,0.77519023,20.714,20.705,125.9731]
[1693418562179,0.77519023,20.714,20.708,104.39]
[1693418571932,105.16519023,20.714,20.707,104.39]
[1693418578734,0.77519023,20.714,20.71,104.39]
[1693418579130,104.39,20.72,20.713,14.49]
[1693418581934,104.39,20.722,20.715,104.39]
[1693418582735,104.39,20.718,20.711,104.39]
[1693418583643,104.39,20.718,20.714,0.06]
[1693418590438,104.39,20.719,20.714,0.06]
[1693418591750,104.39,20.722,20.715,118.88]
[1693418591949,104.39,20.723,20.716,104.39]
[1693418593443,104.39,20.725,20.719,14.49]
[1693418602060,104.39,20.727,20.721,14.49]
[1693418602961,104.39,20.73,20.723,104.39]
[1693418603265,104.39,20.73,20.724,14.49]
[1693418603563,104.39,20.733,20.726,104.39]
[1693418609567,104.39,20.733,20.727,14.47]
[1693418609761,104.39,20.736,20.729,104.39]
[1693418612174,500.0,20.744,20.715,72.55463888]
[1693418612175,104.39,20.737,20.73,104.39]
[1693418618068,604.39,20.744,20.736,104.39]
[1693418618274,8.86640757,20.743,20.738,104.39]
[1693418621576,642.81932947,20.744,20.738,104.39]
[1693418621976,538.42932947,20.744,20.739,104.39]
[1693418631185,38.35214664,20.75,20.743,104.39]
[1693418631186,142.74214664,20.75,20.743,104.39]
[1693418631408,104.39,20.753,20.745,104.39]
[1693418631590,8.86276421,20.752,20.745,104.39]
[1693418632080,8.86276421,20.752,20.747,104.39]
[1693418632290,8.86276421,20.751,20.747,104.39]
[1693418632480,8.86276421,20.75,20.747,104.39]
[1693418632679,604.39,20.754,20.747,104.39]
[1693418632881,8.86274143,20.753,20.747,104.39]
[1693418633084,8.86274143,20.753,20.748,104.39]
[1693418636885,8.86274143,20.752,20.748,104.39]
[1693418637085,8.86274143,20.751,20.748,104.39]
[1693418637285,8.86274143,20.754,20.748,104.39]
[1693418637589,8.86274143,20.753,20.748,104.39]
[1693418637892,8.86274143,20.752,20.748,104.39]
[1693418638192,8.86274143,20.751,20.748,104.39]
[1693418638489,642.03819276,20.755,20.748,104.39]
[1693418638701,8.86224864,20.754,20.748,104.39]
[1693418640196,8.86224864,20.754,20.752,104.39]
[1693418640498,537.64819276,20.755,20.752,104.39]
[1693418650627,104.39,20.753,20.746,104.39]
[1693418650891,104.39,20.751,20.744,104.39]
[1693418651099,604.39,20.745,20.737,104.39]
[1693418652388,104.39,20.744,20.737,104.39]
[1693418655201,500.0,20.745,20.74,104.39]
[1693418661607,104.39,20.744,20.737,104.39]
[1693418662006,104.39,20.741,20.734,104.39]
[1693418662504,104.39,20.741,20.739,0.11636834]
[1693418671619,104.39,20.741,20.734,104.39]
[1693418675913,104.39,20.741,20.739,0.11636834]
[1693418676139,143.41796528,20.741,20.739,0.11636834]
[1693418678262,104.39,20.74,20.739,0.11636834]
[1693418686526,104.39,20.74,20.733,104.39]
[1693418687428,104.39,20.739,20.732,104.39]
[1693418691033,104.39,20.739,20.735,0.17458744]
[1693418694332,104.39,20.742,20.735,104.56458744]
[1693418694532,104.39,20.745,20.738,104.39]
[1693418701938,37.85149469,20.746,20.74,104.39]
[1693418702133,104.39,20.747,20.74,104.39]
[1693418702933,500.0,20.746,20.74,104.39]
[1693418705936,500.0,20.746,20.74,118.85]
[1693418707942,104.39,20.747,20.74,118.85]
[1693418708144,500.0,20.746,20.74,139.6639]
[1693418715040,142.07177434,20.747,20.74,139.6639]
[1693418716745,0.66563819,20.746,20.74,139.6639]
[1693418717339,500.66563819,20.746,20.74,139.6639]
[1693418717549,0.66563819,20.746,20.74,139.6639]
[1693418718236,500.66563819,20.746,20.74,139.6639]
[1693418722888,500.66563819,20.746,20.74,125.2039]
[1693418723051,0.66563819,20.746,20.74,125.2039]
[1693418723246,500.66563819,20.746,20.74,125.2039]
[1693418729651,500.66563819,20.746,20.74,139.6639]
[1693418731455,500.66563819,20.746,20.74,125.2039]
[1693418732064,104.39,20.745,20.74,20.8139]
[1693418735953,104.39,20.745,20.74,35.2739]
[1693418742461,104.39,20.745,20.74,20.8139]
[1693418742660,104.39,20.742,20.739,0.11636834]
[1693418745214,104.39,20.74,20.735,0.17458744]
[1693418745366,500.0,20.737,20.728,104.39]
[1693418745661,104.39,20.732,20.725,104.39]
[1693418751263,104.39,20.728,20.724,21.5026]
[1693418751453,104.39,20.728,20.721,104.39]
[1693418751963,104.39,20.727,20.721,14.46]
[1693418752265,104.39,20.727,20.723,0.34938447]
[1693418754173,104.39,20.724,20.723,0.34938447]
[1693418754365,104.39,20.724,20.719,0.40769684]
[1693418754553,104.39,20.72,20.719,0.40769684]
[1693418759363,104.39,20.72,20.714,0.46603256]
[1693418759562,104.39,20.717,20.714,0.46603256]
[1693418762764,104.39,20.717,20.711,104.39]
[1693418772079,104.39,20.718,20.711,104.39]
[1693418780586,104.39,20.716,20.708,125.0927]
[1693418780796,104.39,20.716,20.708,104.39]
[1693418782084,104.39,20.713,20.707,14.48]
[1693418782778,104.39,20.717,20.71,104.39]
[1693418791989,104.39,20.716,20.71,14.48]
[1693418795490,104.39,20.714,20.707,104.39]
[1693418807104,104.39,20.711,20.704,104.39]
[1693418808921,539.24324324,20.727,20.703,14.48]
[1693418809216,104.39,20.705,20.703,14.48]
[1693418811813,104.39,20.704,20.703,14.48]
[1693418812017,104.39,20.704,20.694,104.39]
[1693418812219,104.39,20.701,20.695,14.48]
[1693418814630,104.39,20.701,20.69,21.6234]
[1693418814631,104.39,20.698,20.691,104.39]
[1693418815923,104.39,20.698,20.69,21.6234]
[1693418816118,104.39,20.692,20.685,104.39]
[1693418816421,104.39,20.689,20.682,104.39]
[1693418817222,500.0,20.697,20.678,35.0773]
[1693418817420,104.39,20.685,20.678,139.4673]
[1693418819230,104.39,20.682,20.678,14.5]
[1693418819919,104.39,20.679,20.671,104.39]
[1693418821923,104.39,20.678,20.671,104.39]
[1693418824124,104.39,20.678,20.677,0.11671878]
[1693418824324,104.39,20.678,20.677,14.61671878]
[1693418824845,104.39,20.68,20.678,14.5]
[1693418825024,66.2574468,20.716,20.678,14.5]
[1693418825025,104.39,20.684,20.678,14.5]
[1693418825625,104.39,20.684,20.677,0.11671878]
[1693418825626,104.39,20.687,20.681,14.5]
[1693418827332,116.2,20.69,20.678,14.5]
[1693418840036,116.2,20.687,20.678,14.5]
[1693418840339,116.2,20.683,20.678,14.5]
[1693418842035,116.2,20.679,20.678,14.5]
[1693418843739,116.2,20.679,20.677,0.11671877]
[1693418845040,116.2,20.679,20.678,14.5]
[1693418851648,116.2,20.684,20.678,14.5]
[1693418852157,116.2,20.687,20.678,14.5]
[1693418852451,104.6,20.684,20.678,119.1]
[1693418852648,104.6,20.684,20.678,104.6]
[1693418852846,104.6,20.684,20.671,20.2308]
[1693418852847,104.6,20.681,20.674,104.6]
[1693418853754,104.6,20.681,20.678,14.51]
[1693418857352,116.28,20.684,20.678,14.51]
[1693418859756,116.28,20.68,20.677,0.11671877]
[1693418867568,116.28,20.68,20.671,20.2308]
[1693418868468,116.28,20.68,20.678,14.51]
[1693418872174,116.28,20.683,20.678,14.51]
[1693418875269,116.93663963,20.683,20.678,14.51]
[1693418875871,0.65663963,20.683,20.678,14.51]
[1693418882375,104.62,20.68,20.677,0.11671877]
[1693418882574,104.62,20.68,20.674,38.52611217]
[1693418882775,104.62,20.678,20.672,20.0087]
[1693418883580,104.62,20.678,20.677,0.11671877]
[1693418888576,0.66472792,20.68,20.677,0.11671877]
[1693418888776,0.66472792,20.68,20.678,14.5]
[1693418889087,500.0,20.698,20.678,119.12]
[1693418889088,104.62,20.685,20.678,119.12]
[1693418890801,0.65942206,20.684,20.678,119.12]
[1693418892082,0.65942206,20.684,20.681,14.5]
[1693418892386,0.65942206,20.684,20.678,130.71]
[1693418893287,0.65942206,20.684,20.681,116.21]
[1693418898390,116.21,20.692,20.681,116.21]
[1693418899993,0.74850757,20.689,20.684,0.68509742]
[1693418900890,0.74850757,20.689,20.684,15.18509742]
[1693418901990,0.74850757,20.689,20.684,0.68509742]
[1693418903595,0.74850757,20.689,20.684,116.89509742]
[1693418904391,116.21,20.699,20.688,14.5]
[1693418905792,116.21,20.699,20.687,116.21]
[1693418906000,116.21,20.696,20.685,20.4715]
[1693418911196,116.21,20.693,20.685,20.4715]
[1693418911498,116.21,20.693,20.681,14.5]
[1693418911696,116.21,20.69,20.678,137.9832]
[1693418911902,116.21,20.686,20.678,21.7732]
[1693418912292,116.21,20.686,20.674,154.25255318]
[1693418921113,116.21,20.683,20.674,38.04255318]
[1693418921317,116.21,20.683,20.672,116.21]
[1693418932334,104.69,20.675,20.67,38.01547388]
[1693418932566,104.69,20.675,20.669,104.69]
[1693418933220,104.69,20.67,20.662,104.69]
[1693418936932,104.69,20.675,20.668,104.69]
[1693418937334,116.34,20.678,20.665,116.34]
[1693418939730,116.34,20.68,20.668,116.34]
[1693418940431,116.34,20.68,20.669,21.7417]
[1693418941130,116.34,20.677,20.669,21.7417]
[1693418943030,116.34,20.675,20.669,21.7417]
[1693418943233,116.34,20.677,20.669,21.7417]
[1693418952036,116.34,20.679,20.669,21.7417]
[1693418952239,116.34,20.679,20.668,116.34]
[1693418952440,116.34,20.679,20.669,20.4929]
[1693418953441,116.34,20.683,20.671,116.34]
[1693418953943,116.34,20.685,20.673,116.34]
[1693418954337,116.34,20.685,20.674,21.2188]
[1693418956974,0.75010369,20.682,20.677,0.73517369]
[1693418967343,104.65,20.679,20.677,0.73517369]
[1693418968748,104.65,20.678,20.677,0.73517369]
[1693418970846,104.65,20.678,20.669,125.3041]
[1693418971047,104.65,20.673,20.669,20.6541]
[1693418972654,116.36,20.676,20.669,20.6541]
[1693418973157,116.36,20.676,20.665,14.51]
[1693418975057,116.36,20.673,20.662,14.51]
[1693418982047,116.36,20.675,20.663,116.36]
[1693418985069,465.44,20.68,20.66,14.51]
[1693418985070,116.36,20.672,20.66,130.87]
[1693418988954,116.36,20.675,20.663,116.36]
[1693418991767,116.36,20.672,20.66,130.87]
[1693418991977,116.36,20.671,20.66,14.51]
[1693418994464,116.36,20.671,20.659,137.0087]
[1693418997364,104.79,20.667,20.66,104.79]
[1693418997965,104.79,20.663,20.659,20.6487]
[1693418999264,104.79,20.661,20.659,20.6487]
[1693418999667,104.79,20.661,20.654,104.79]
[1693419000574,104.79,20.659,20.651,104.79]
[1693419000883,500.0,20.668,20.648,119.31]